Workbook

Sheet Charts
B1: North West Leicestershire AQ Monitoring
B2: Coalville - Hourly Data Charts
B3: Prepared by A. Pepler, TRL Ltd
B4: Data Period:
B5: Start: | C5: 2018-01-01
B6: Finish: | C6: 2018-09-23

Sheet 15 Min Data
B1: North West Leicestershire AQ Monitoring
B2: Coalville - Provisional Hourly Average Data
B3: Prepared by A.Pepler TRL Ltd
B4: Data Period:
B5: Start: | C5: =Charts!C5 -> 2018-01-01
B6: Finish: | C6: =Charts!C6 -> 2018-09-23
A8: Date | B8: GMT | C8: Corrected | D8: Corrected | E8: (NOx-NO) | F8: Notes
B9: Time ending | C9: NO (ppb) | D9: NOx (ppb) | E9: NO2 (ppb)
A10: 2018-01-01 | B10: 00:00:00 | F10: Invalid data removed
A11: 2018-01-01 | B11: 00:15:00
A12: 2018-01-01 | B12: 00:30:00
A13: 2018-01-01 | B13: 00:45:00
A14: 2018-01-01 | B14: 01:00:00
A15: 2018-01-01 | B15: 01:15:00
A16: 2018-01-01 | B16: 01:30:00
A17: 2018-01-01 | B17: 01:45:00
A18: 2018-01-01 | B18: 02:00:00
A19: 2018-01-01 | B19: 02:15:00
A20: 2018-01-01 | B20: 02:30:00
A21: 2018-01-01 | B21: 02:45:00
A22: 2018-01-01 | B22: 03:00:00
A23: 2018-01-01 | B23: 03:15:00
A24: 2018-01-01 | B24: 03:30:00
A25: 2018-01-01 | B25: 03:45:00
A26: 2018-01-01 | B26: 04:00:00
A27: 2018-01-01 | B27: 04:15:00
A28: 2018-01-01 | B28: 04:30:00
A29: 2018-01-01 | B29: 04:45:00
A30: 2018-01-01 | B30: 05:00:00
A31: 2018-01-01 | B31: 05:15:00
A32: 2018-01-01 | B32: 05:30:00
A33: 2018-01-01 | B33: 05:45:00
A34: 2018-01-01 | B34: 06:00:00
A35: 2018-01-01 | B35: 06:15:00
A36: 2018-01-01 | B36: 06:30:00
A37: 2018-01-01 | B37: 06:45:00
A38: 2018-01-01 | B38: 07:00:00
A39: 2018-01-01 | B39: 07:15:00
A40: 2018-01-01 | B40: 07:30:00
A41: 2018-01-01 | B41: 07:45:00
A42: 2018-01-01 | B42: 08:00:00
A43: 2018-01-01 | B43: 08:15:00
A44: 2018-01-01 | B44: 08:30:00
A45: 2018-01-01 | B45: 08:45:00
A46: 2018-01-01 | B46: 09:00:00
A47: 2018-01-01 | B47: 09:15:00
A48: 2018-01-01 | B48: 09:30:00
A49: 2018-01-01 | B49: 09:45:00
A50: 2018-01-01 | B50: 10:00:00
A51: 2018-01-01 | B51: 10:15:00
A52: 2018-01-01 | B52: 10:30:00
A53: 2018-01-01 | B53: 10:45:00
A54: 2018-01-01 | B54: 11:00:00
A55: 2018-01-01 | B55: 11:15:00
A56: 2018-01-01 | B56: 11:30:00
A57: 2018-01-01 | B57: 11:45:00
A58: 2018-01-01 | B58: 12:00:00
A59: 2018-01-01 | B59: 12:15:00
A60: 2018-01-01 | B60: 12:30:00
A61: 2018-01-01 | B61: 12:45:00
A62: 2018-01-01 | B62: 13:00:00
A63: 2018-01-01 | B63: 13:15:00
A64: 2018-01-01 | B64: 13:30:00
A65: 2018-01-01 | B65: 13:45:00
A66: 2018-01-01 | B66: 14:00:00
A67: 2018-01-01 | B67: 14:15:00
A68: 2018-01-01 | B68: 14:30:00
A69: 2018-01-01 | B69: 14:45:00
A70: 2018-01-01 | B70: 15:00:00
A71: 2018-01-01 | B71: 15:15:00
A72: 2018-01-01 | B72: 15:30:00
A73: 2018-01-01 | B73: 15:45:00
A74: 2018-01-01 | B74: 16:00:00
A75: 2018-01-01 | B75: 16:15:00
A76: 2018-01-01 | B76: 16:30:00
A77: 2018-01-01 | B77: 16:45:00
A78: 2018-01-01 | B78: 17:00:00
A79: 2018-01-01 | B79: 17:15:00
A80: 2018-01-01 | B80: 17:30:00
A81: 2018-01-01 | B81: 17:45:00
A82: 2018-01-01 | B82: 18:00:00
A83: 2018-01-01 | B83: 18:15:00
A84: 2018-01-01 | B84: 18:30:00
A85: 2018-01-01 | B85: 18:45:00
A86: 2018-01-01 | B86: 19:00:00
A87: 2018-01-01 | B87: 19:15:00
A88: 2018-01-01 | B88: 19:30:00
A89: 2018-01-01 | B89: 19:45:00
A90: 2018-01-01 | B90: 20:00:00
A91: 2018-01-01 | B91: 20:15:00
A92: 2018-01-01 | B92: 20:30:00
A93: 2018-01-01 | B93: 20:45:00
A94: 2018-01-01 | B94: 21:00:00
A95: 2018-01-01 | B95: 21:15:00
A96: 2018-01-01 | B96: 21:30:00
A97: 2018-01-01 | B97: 21:45:00
A98: 2018-01-01 | B98: 22:00:00
A99: 2018-01-01 | B99: 22:15:00
A100: 2018-01-01 | B100: 22:30:00
A101: 2018-01-01 | B101: 22:45:00
A102: 2018-01-01 | B102: 23:00:00
A103: 2018-01-01 | B103: 23:15:00
A104: 2018-01-01 | B104: 23:30:00
A105: 2018-01-01 | B105: 23:45:00
A106: 2018-01-01 | B106: 1
A107: 2018-01-02 | B107: 00:15:00
A108: 2018-01-02 | B108: 00:30:00
A109: 2018-01-02 | B109: 00:45:00
A110: 2018-01-02 | B110: 01:00:00
A111: 2018-01-02 | B111: 01:15:00
A112: 2018-01-02 | B112: 01:30:00
A113: 2018-01-02 | B113: 01:45:00
A114: 2018-01-02 | B114: 02:00:00
A115: 2018-01-02 | B115: 02:15:00
A116: 2018-01-02 | B116: 02:30:00
A117: 2018-01-02 | B117: 02:45:00
A118: 2018-01-02 | B118: 03:00:00
A119: 2018-01-02 | B119: 03:15:00
A120: 2018-01-02 | B120: 03:30:00
A121: 2018-01-02 | B121: 03:45:00
A122: 2018-01-02 | B122: 04:00:00
A123: 2018-01-02 | B123: 04:15:00
A124: 2018-01-02 | B124: 04:30:00
A125: 2018-01-02 | B125: 04:45:00
A126: 2018-01-02 | B126: 05:00:00
A127: 2018-01-02 | B127: 05:15:00
A128: 2018-01-02 | B128: 05:30:00
A129: 2018-01-02 | B129: 05:45:00
A130: 2018-01-02 | B130: 06:00:00
A131: 2018-01-02 | B131: 06:15:00
A132: 2018-01-02 | B132: 06:30:00
A133: 2018-01-02 | B133: 06:45:00
A134: 2018-01-02 | B134: 07:00:00
A135: 2018-01-02 | B135: 07:15:00
A136: 2018-01-02 | B136: 07:30:00
A137: 2018-01-02 | B137: 07:45:00
A138: 2018-01-02 | B138: 08:00:00
A139: 2018-01-02 | B139: 08:15:00
A140: 2018-01-02 | B140: 08:30:00
A141: 2018-01-02 | B141: 08:45:00
A142: 2018-01-02 | B142: 09:00:00
A143: 2018-01-02 | B143: 09:15:00
A144: 2018-01-02 | B144: 09:30:00
A145: 2018-01-02 | B145: 09:45:00
A146: 2018-01-02 | B146: 10:00:00
A147: 2018-01-02 | B147: 10:15:00
A148: 2018-01-02 | B148: 10:30:00
A149: 2018-01-02 | B149: 10:45:00
A150: 2018-01-02 | B150: 11:00:00
A151: 2018-01-02 | B151: 11:15:00
A152: 2018-01-02 | B152: 11:30:00
A153: 2018-01-02 | B153: 11:45:00
A154: 2018-01-02 | B154: 12:00:00
A155: 2018-01-02 | B155: 12:15:00
A156: 2018-01-02 | B156: 12:30:00
A157: 2018-01-02 | B157: 12:45:00
A158: 2018-01-02 | B158: 13:00:00
A159: 2018-01-02 | B159: 13:15:00
A160: 2018-01-02 | B160: 13:30:00
A161: 2018-01-02 | B161: 13:45:00
A162: 2018-01-02 | B162: 14:00:00
A163: 2018-01-02 | B163: 14:15:00
A164: 2018-01-02 | B164: 14:30:00
A165: 2018-01-02 | B165: 14:45:00
A166: 2018-01-02 | B166: 15:00:00
A167: 2018-01-02 | B167: 15:15:00
A168: 2018-01-02 | B168: 15:30:00
A169: 2018-01-02 | B169: 15:45:00
A170: 2018-01-02 | B170: 16:00:00
A171: 2018-01-02 | B171: 16:15:00
A172: 2018-01-02 | B172: 16:30:00
A173: 2018-01-02 | B173: 16:45:00
A174: 2018-01-02 | B174: 17:00:00
A175: 2018-01-02 | B175: 17:15:00
A176: 2018-01-02 | B176: 17:30:00
A177: 2018-01-02 | B177: 17:45:00
A178: 2018-01-02 | B178: 18:00:00
A179: 2018-01-02 | B179: 18:15:00
A180: 2018-01-02 | B180: 18:30:00
A181: 2018-01-02 | B181: 18:45:00
A182: 2018-01-02 | B182: 19:00:00
A183: 2018-01-02 | B183: 19:15:00
A184: 2018-01-02 | B184: 19:30:00
A185: 2018-01-02 | B185: 19:45:00
A186: 2018-01-02 | B186: 20:00:00
A187: 2018-01-02 | B187: 20:15:00
A188: 2018-01-02 | B188: 20:30:00
A189: 2018-01-02 | B189: 20:45:00
A190: 2018-01-02 | B190: 21:00:00
A191: 2018-01-02 | B191: 21:15:00
A192: 2018-01-02 | B192: 21:30:00
A193: 2018-01-02 | B193: 21:45:00
A194: 2018-01-02 | B194: 22:00:00
A195: 2018-01-02 | B195: 22:15:00
A196: 2018-01-02 | B196: 22:30:00
A197: 2018-01-02 | B197: 22:45:00
A198: 2018-01-02 | B198: 23:00:00
A199: 2018-01-02 | B199: 23:15:00
A200: 2018-01-02 | B200: 23:30:00
A201: 2018-01-02 | B201: 23:45:00
... 4299 more rows

Sheet Hourly data
E1: North West Leicestershire AQ Monitoring
E2: Coalville - Provisional Hourly Average Data
E3: =Charts!B3 -> Prepared by A. Pepler, TRL Ltd
E4: Data Period:
E5: Start: | F5: =Charts!C5 -> 2018-01-01
E6: Finish: | F6: =Charts!C6 -> 2018-09-23
B8: Capture | C8: Month | D8: Date | E8: Time | F8: NO | G8: NO (as NO2 equivalent) | H8: NOx | I8: NOx | J8: NO2 | K8: NO2 | L8: Notes | N8: Statistics
E9: Hour beg. | F9: ppb | G9: μg/m3 | H9: ppb | I9: μg/m3 | J9: ppb | K9: μg/m3 | O9: NO | Q9: NOx | S9: NO2
B10: =IF(ISNUMBER(K10),100/COUNTIF($C$10:$C$6393,C10),0) -> 0 | C10: January | D10: 2018-01-01 | E10: 00:00:00 | F10: NA | H10: NA | L10: Invalid data removed | O10: μg/m3 | P10: μg/m4 | Q10: μg/m5 | R10: μg/m6 | S10: μg/m7
B11: 0 | C11: January | D11: 2018-01-01 | E11: 01:00:00 | F11: NA | H11: NA | N11: Minimum | O11: =MIN(G10:G6393) -> 0.8404 | P11: =MIN(H10:H2169) -> 4.85 | Q11: =MIN(I10:I6393) -> 4.5267 | R11: 2.0075 | S11: =MIN(K10:K6393) -> 1.4134
B12: 0 | C12: January | D12: 2018-01-01 | E12: 02:00:00 | F12: NA | H12: NA | N12: Average | O12: =AVERAGE(G10:G6393) -> 79.24406435 | P12: =AVERAGE(H10:H2169) -> 86.24453456 | Q12: =AVERAGE(I10:I6393) -> 121.0721604 | R12: 23.98160437 | S12: =AVERAGE(K10:K6393) -> 41.82708544
B13: 0 | C13: January | D13: 2018-01-01 | E13: 03:00:00 | F13: NA | H13: NA | N13: St Dev | O13: =STDEV(G10:G6393) -> 76.03963255 | P13: =STDEV(H10:H2169) -> 74.74614952 | Q13: =STDEV(I10:I6393) -> 94.65149923 | R13: =STDEV(J10:J2169) -> 13.59186908 | S13: =STDEV(K10:K6393) -> 22.96648253
B14: 0 | C14: January | D14: 2018-01-01 | E14: 04:00:00 | F14: NA | H14: NA | N14: Median | O14: =MEDIAN(G10:G6393) -> 55.4473 | P14: =MEDIAN(H10:H2169) -> 63.5 | Q14: =MEDIAN(I10:I6393) -> 93.208 | R14: 22.325 | S14: =MEDIAN(K10:K6393) -> 38.2
B15: 0 | C15: January | D15: 2018-01-01 | E15: 05:00:00 | F15: NA | H15: NA | N15: Maximum | O15: =MAX(G10:G6393) -> 1100.53245 | P15: =MAX(H10:H2169) -> 649.775 | Q15: =MAX(I10:I6393) -> 1241.07025 | R15: 81.6775 | S15: =MAX(K10:K6393) -> 156.004025
B16: 0 | C16: January | D16: 2018-01-01 | E16: 06:00:00 | F16: NA | H16: NA | N16: Count (No. of periods) | O16: =COUNT(G1201:G6393) -> 4821 | P16: =COUNT(H1201:H6393) -> 4821 | Q16: 4821 | R16: 4821 | S16: 4821
B17: 0 | C17: January | D17: 2018-01-01 | E17: 07:00:00 | F17: NA | H17: NA | N17: Data Capture (%) | O17: =(O16/(O16+COUNTBLANK(G1201:G6393))*100) -> 92.83651069 | P17: =(P16/(P16+COUNTBLANK(H1201:H6393))*100) -> 100 | Q17: 92.83651069 | R17: 100 | S17: 92.83651069
B18: 0 | C18: January | D18: 2018-01-01 | E18: 08:00:00 | F18: NA | H18: NA | N18: Exceedences of the NO2 hourly 200ug/m3 objective | S18: =COUNTIF( (K10:K6393), ">=200" ) -> 0
B19: 0 | C19: January | D19: 2018-01-01 | E19: 09:00:00 | F19: NA | H19: NA | O19: =(O16/(365*24))*100 -> 55.03424658 | P19: =(P16/(365*24))*100 -> 55.03424658 | Q19: 55.03424658 | R19: 55.03424658 | S19: 55.03424658
B20: 0 | C20: January | D20: 2018-01-01 | E20: 10:00:00 | F20: NA | H20: NA
B21: 0 | C21: January | D21: 2018-01-01 | E21: 11:00:00 | F21: NA | H21: NA | N21: 99.8th percentile of hourly means | S21: =PERCENTILE(K10:K6393,0.998) -> 128.732281
B22: 0 | C22: January | D22: 2018-01-01 | E22: 12:00:00 | F22: NA | H22: NA
B23: 0 | C23: January | D23: 2018-01-01 | E23: 13:00:00 | F23: NA | H23: NA
B24: 0 | C24: January | D24: 2018-01-01 | E24: 14:00:00 | F24: NA | H24: NA
B25: 0 | C25: January | D25: 2018-01-01 | E25: 15:00:00 | F25: NA | H25: NA
B26: 0 | C26: January | D26: 2018-01-01 | E26: 16:00:00 | F26: NA | H26: NA
B27: 0 | C27: January | D27: 2018-01-01 | E27: 17:00:00 | F27: NA | H27: NA
B28: 0 | C28: January | D28: 2018-01-01 | E28: 18:00:00 | F28: NA | H28: NA
B29: 0 | C29: January | D29: 2018-01-01 | E29: 19:00:00 | F29: NA | H29: NA
B30: 0 | C30: January | D30: 2018-01-01 | E30: 20:00:00 | F30: NA | H30: NA
B31: 0 | C31: January | D31: 2018-01-01 | E31: 21:00:00 | F31: NA | H31: NA
B32: 0 | C32: January | D32: 2018-01-01 | E32: 22:00:00 | F32: NA | H32: NA
B33: 0 | C33: January | D33: 2018-01-01 | E33: 23:00:00 | F33: NA | H33: NA
B34: 0 | C34: January | D34: 2018-01-02 | E34: 00:00:00 | F34: NA | H34: NA
B35: 0 | C35: January | D35: 2018-01-02 | E35: 01:00:00 | F35: NA | H35: NA
B36: 0 | C36: January | D36: 2018-01-02 | E36: 02:00:00 | F36: NA | H36: NA
B37: 0 | C37: January | D37: 2018-01-02 | E37: 03:00:00 | F37: NA | H37: NA
B38: 0 | C38: January | D38: 2018-01-02 | E38: 04:00:00 | F38: NA | H38: NA
B39: 0 | C39: January | D39: 2018-01-02 | E39: 05:00:00 | F39: NA | H39: NA
B40: 0 | C40: January | D40: 2018-01-02 | E40: 06:00:00 | F40: NA | H40: NA
B41: 0 | C41: January | D41: 2018-01-02 | E41: 07:00:00 | F41: NA | H41: NA
B42: 0 | C42: January | D42: 2018-01-02 | E42: 08:00:00 | F42: NA | H42: NA
B43: 0 | C43: January | D43: 2018-01-02 | E43: 09:00:00 | F43: NA | H43: NA
B44: 0 | C44: January | D44: 2018-01-02 | E44: 10:00:00 | F44: NA | H44: NA
B45: 0 | C45: January | D45: 2018-01-02 | E45: 11:00:00 | F45: NA | H45: NA
B46: 0 | C46: January | D46: 2018-01-02 | E46: 12:00:00 | F46: NA | H46: NA
B47: 0 | C47: January | D47: 2018-01-02 | E47: 13:00:00 | F47: NA | H47: NA
B48: 0 | C48: January | D48: 2018-01-02 | E48: 14:00:00 | F48: NA | H48: NA
B49: 0 | C49: January | D49: 2018-01-02 | E49: 15:00:00 | F49: NA | H49: NA
B50: 0 | C50: January | D50: 2018-01-02 | E50: 16:00:00 | F50: NA | H50: NA
B51: 0 | C51: January | D51: 2018-01-02 | E51: 17:00:00 | F51: NA | H51: NA
B52: 0 | C52: January | D52: 2018-01-02 | E52: 18:00:00 | F52: NA | H52: NA
B53: 0 | C53: January | D53: 2018-01-02 | E53: 19:00:00 | F53: NA | H53: NA
B54: 0 | C54: January | D54: 2018-01-02 | E54: 20:00:00 | F54: NA | H54: NA
B55: 0 | C55: January | D55: 2018-01-02 | E55: 21:00:00 | F55: NA | H55: NA
B56: 0 | C56: January | D56: 2018-01-02 | E56: 22:00:00 | F56: NA | H56: NA
B57: 0 | C57: January | D57: 2018-01-02 | E57: 23:00:00 | F57: NA | H57: NA
B58: 0 | C58: January | D58: 2018-01-03 | E58: 00:00:00 | F58: NA | H58: NA
B59: 0 | C59: January | D59: 2018-01-03 | E59: 01:00:00 | F59: NA | H59: NA
B60: 0 | C60: January | D60: 2018-01-03 | E60: 02:00:00 | F60: NA | H60: NA
B61: 0 | C61: January | D61: 2018-01-03 | E61: 03:00:00 | F61: NA | H61: NA
B62: 0 | C62: January | D62: 2018-01-03 | E62: 04:00:00 | F62: NA | H62: NA
B63: 0 | C63: January | D63: 2018-01-03 | E63: 05:00:00 | F63: NA | H63: NA
B64: 0 | C64: January | D64: 2018-01-03 | E64: 06:00:00 | F64: NA | H64: NA
B65: 0 | C65: January | D65: 2018-01-03 | E65: 07:00:00 | F65: NA | H65: NA
B66: 0 | C66: January | D66: 2018-01-03 | E66: 08:00:00 | F66: NA | H66: NA
B67: 0 | C67: January | D67: 2018-01-03 | E67: 09:00:00 | F67: NA | H67: NA
B68: 0 | C68: January | D68: 2018-01-03 | E68: 10:00:00 | F68: NA | H68: NA
B69: 0 | C69: January | D69: 2018-01-03 | E69: 11:00:00 | F69: NA | H69: NA
B70: 0 | C70: January | D70: 2018-01-03 | E70: 12:00:00 | F70: NA | H70: NA
B71: 0 | C71: January | D71: 2018-01-03 | E71: 13:00:00 | F71: NA | H71: NA
B72: 0 | C72: January | D72: 2018-01-03 | E72: 14:00:00 | F72: NA | H72: NA
B73: 0 | C73: January | D73: 2018-01-03 | E73: 15:00:00 | F73: NA | H73: NA
B74: =IF(ISNUMBER(K74),100/COUNTIF($C$10:$C$6393,C74),0) -> 0 | C74: January | D74: 2018-01-03 | E74: 16:00:00 | F74: NA | H74: NA
B75: 0 | C75: January | D75: 2018-01-03 | E75: 17:00:00 | F75: NA | H75: NA
B76: 0 | C76: January | D76: 2018-01-03 | E76: 18:00:00 | F76: NA | H76: NA
B77: 0 | C77: January | D77: 2018-01-03 | E77: 19:00:00 | F77: NA | H77: NA
B78: 0 | C78: January | D78: 2018-01-03 | E78: 20:00:00 | F78: NA | H78: NA
B79: 0 | C79: January | D79: 2018-01-03 | E79: 21:00:00 | F79: NA | H79: NA
B80: 0 | C80: January | D80: 2018-01-03 | E80: 22:00:00 | F80: NA | H80: NA
B81: 0 | C81: January | D81: 2018-01-03 | E81: 23:00:00 | F81: NA | H81: NA
B82: 0 | C82: January | D82: 2018-01-04 | E82: 00:00:00 | F82: NA | H82: NA
B83: 0 | C83: January | D83: 2018-01-04 | E83: 01:00:00 | F83: NA | H83: NA
B84: 0 | C84: January | D84: 2018-01-04 | E84: 02:00:00 | F84: NA | H84: NA
B85: 0 | C85: January | D85: 2018-01-04 | E85: 03:00:00 | F85: NA | H85: NA
B86: 0 | C86: January | D86: 2018-01-04 | E86: 04:00:00 | F86: NA | H86: NA
B87: 0 | C87: January | D87: 2018-01-04 | E87: 05:00:00 | F87: NA | H87: NA
B88: 0 | C88: January | D88: 2018-01-04 | E88: 06:00:00 | F88: NA | H88: NA
B89: 0 | C89: January | D89: 2018-01-04 | E89: 07:00:00 | F89: NA | H89: NA
B90: 0 | C90: January | D90: 2018-01-04 | E90: 08:00:00 | F90: NA | H90: NA
B91: 0 | C91: January | D91: 2018-01-04 | E91: 09:00:00 | F91: NA | H91: NA
B92: 0 | C92: January | D92: 2018-01-04 | E92: 10:00:00 | F92: NA | H92: NA
B93: 0 | C93: January | D93: 2018-01-04 | E93: 11:00:00 | F93: NA | H93: NA
B94: 0 | C94: January | D94: 2018-01-04 | E94: 12:00:00 | F94: NA | H94: NA
B95: 0 | C95: January | D95: 2018-01-04 | E95: 13:00:00 | F95: NA | H95: NA
B96: 0 | C96: January | D96: 2018-01-04 | E96: 14:00:00 | F96: NA | H96: NA
B97: 0 | C97: January | D97: 2018-01-04 | E97: 15:00:00 | F97: NA | H97: NA
B98: 0 | C98: January | D98: 2018-01-04 | E98: 16:00:00 | F98: NA | H98: NA
B99: 0 | C99: January | D99: 2018-01-04 | E99: 17:00:00 | F99: NA | H99: NA
B100: 0 | C100: January | D100: 2018-01-04 | E100: 18:00:00 | F100: NA | H100: NA
B101: 0 | C101: January | D101: 2018-01-04 | E101: 19:00:00 | F101: NA | H101: NA
B102: 0 | C102: January | D102: 2018-01-04 | E102: 20:00:00 | F102: NA | H102: NA
B103: 0 | C103: January | D103: 2018-01-04 | E103: 21:00:00 | F103: NA | H103: NA
B104: 0 | C104: January | D104: 2018-01-04 | E104: 22:00:00 | F104: NA | H104: NA
B105: 0 | C105: January | D105: 2018-01-04 | E105: 23:00:00 | F105: NA | H105: NA
B106: 0 | C106: January | D106: 2018-01-05 | E106: 00:00:00 | F106: NA | H106: NA
B107: 0 | C107: January | D107: 2018-01-05 | E107: 01:00:00 | F107: NA | H107: NA
B108: 0 | C108: January | D108: 2018-01-05 | E108: 02:00:00 | F108: NA | H108: NA
B109: 0 | C109: January | D109: 2018-01-05 | E109: 03:00:00 | F109: NA | H109: NA
B110: 0 | C110: January | D110: 2018-01-05 | E110: 04:00:00 | F110: NA | H110: NA
B111: 0 | C111: January | D111: 2018-01-05 | E111: 05:00:00 | F111: NA | H111: NA
B112: 0 | C112: January | D112: 2018-01-05 | E112: 06:00:00 | F112: NA | H112: NA
B113: 0 | C113: January | D113: 2018-01-05 | E113: 07:00:00 | F113: NA | H113: NA
B114: 0 | C114: January | D114: 2018-01-05 | E114: 08:00:00 | F114: NA | H114: NA
B115: 0 | C115: January | D115: 2018-01-05 | E115: 09:00:00 | F115: NA | H115: NA
B116: 0 | C116: January | D116: 2018-01-05 | E116: 10:00:00 | F116: NA | H116: NA
B117: 0 | C117: January | D117: 2018-01-05 | E117: 11:00:00 | F117: NA | H117: NA
B118: 0 | C118: January | D118: 2018-01-05 | E118: 12:00:00 | F118: NA | H118: NA
B119: 0 | C119: January | D119: 2018-01-05 | E119: 13:00:00 | F119: NA | H119: NA
B120: 0 | C120: January | D120: 2018-01-05 | E120: 14:00:00 | F120: NA | H120: NA
B121: 0 | C121: January | D121: 2018-01-05 | E121: 15:00:00 | F121: NA | H121: NA
B122: 0 | C122: January | D122: 2018-01-05 | E122: 16:00:00 | F122: NA | H122: NA
B123: 0 | C123: January | D123: 2018-01-05 | E123: 17:00:00 | F123: NA | H123: NA
B124: 0 | C124: January | D124: 2018-01-05 | E124: 18:00:00 | F124: NA | H124: NA
B125: 0 | C125: January | D125: 2018-01-05 | E125: 19:00:00 | F125: NA | H125: NA
B126: 0 | C126: January | D126: 2018-01-05 | E126: 20:00:00 | F126: NA | H126: NA
B127: 0 | C127: January | D127: 2018-01-05 | E127: 21:00:00 | F127: NA | H127: NA
B128: 0 | C128: January | D128: 2018-01-05 | E128: 22:00:00 | F128: NA | H128: NA
B129: 0 | C129: January | D129: 2018-01-05 | E129: 23:00:00 | F129: NA | H129: NA
B130: 0 | C130: January | D130: 2018-01-06 | E130: 00:00:00 | F130: NA | H130: NA
B131: 0 | C131: January | D131: 2018-01-06 | E131: 01:00:00 | F131: NA | H131: NA
B132: 0 | C132: January | D132: 2018-01-06 | E132: 02:00:00 | F132: NA | H132: NA
B133: 0 | C133: January | D133: 2018-01-06 | E133: 03:00:00 | F133: NA | H133: NA
B134: 0 | C134: January | D134: 2018-01-06 | E134: 04:00:00 | F134: NA | H134: NA
B135: 0 | C135: January | D135: 2018-01-06 | E135: 05:00:00 | F135: NA | H135: NA
B136: 0 | C136: January | D136: 2018-01-06 | E136: 06:00:00 | F136: NA | H136: NA
B137: 0 | C137: January | D137: 2018-01-06 | E137: 07:00:00 | F137: NA | H137: NA
B138: =IF(ISNUMBER(K138),100/COUNTIF($C$10:$C$6393,C138),0) -> 0 | C138: January | D138: 2018-01-06 | E138: 08:00:00 | F138: NA | H138: NA
B139: 0 | C139: January | D139: 2018-01-06 | E139: 09:00:00 | F139: NA | H139: NA
B140: 0 | C140: January | D140: 2018-01-06 | E140: 10:00:00 | F140: NA | H140: NA
B141: 0 | C141: January | D141: 2018-01-06 | E141: 11:00:00 | F141: NA | H141: NA
B142: 0 | C142: January | D142: 2018-01-06 | E142: 12:00:00 | F142: NA | H142: NA
B143: 0 | C143: January | D143: 2018-01-06 | E143: 13:00:00 | F143: NA | H143: NA
B144: 0 | C144: January | D144: 2018-01-06 | E144: 14:00:00 | F144: NA | H144: NA
B145: 0 | C145: January | D145: 2018-01-06 | E145: 15:00:00 | F145: NA | H145: NA
B146: 0 | C146: January | D146: 2018-01-06 | E146: 16:00:00 | F146: NA | H146: NA
B147: 0 | C147: January | D147: 2018-01-06 | E147: 17:00:00 | F147: NA | H147: NA
B148: 0 | C148: January | D148: 2018-01-06 | E148: 18:00:00 | F148: NA | H148: NA
B149: 0 | C149: January | D149: 2018-01-06 | E149: 19:00:00 | F149: NA | H149: NA
B150: 0 | C150: January | D150: 2018-01-06 | E150: 20:00:00 | F150: NA | H150: NA
B151: 0 | C151: January | D151: 2018-01-06 | E151: 21:00:00 | F151: NA | H151: NA
B152: 0 | C152: January | D152: 2018-01-06 | E152: 22:00:00 | F152: NA | H152: NA
B153: 0 | C153: January | D153: 2018-01-06 | E153: 23:00:00 | F153: NA | H153: NA
B154: 0 | C154: January | D154: 2018-01-07 | E154: 00:00:00 | F154: NA | H154: NA
B155: 0 | C155: January | D155: 2018-01-07 | E155: 01:00:00 | F155: NA | H155: NA
B156: 0 | C156: January | D156: 2018-01-07 | E156: 02:00:00 | F156: NA | H156: NA
B157: 0 | C157: January | D157: 2018-01-07 | E157: 03:00:00 | F157: NA | H157: NA
B158: 0 | C158: January | D158: 2018-01-07 | E158: 04:00:00 | F158: NA | H158: NA
B159: 0 | C159: January | D159: 2018-01-07 | E159: 05:00:00 | F159: NA | H159: NA
B160: 0 | C160: January | D160: 2018-01-07 | E160: 06:00:00 | F160: NA | H160: NA
B161: 0 | C161: January | D161: 2018-01-07 | E161: 07:00:00 | F161: NA | H161: NA
B162: 0 | C162: January | D162: 2018-01-07 | E162: 08:00:00 | F162: NA | H162: NA
B163: 0 | C163: January | D163: 2018-01-07 | E163: 09:00:00 | F163: NA | H163: NA
B164: 0 | C164: January | D164: 2018-01-07 | E164: 10:00:00 | F164: NA | H164: NA
B165: 0 | C165: January | D165: 2018-01-07 | E165: 11:00:00 | F165: NA | H165: NA
B166: 0 | C166: January | D166: 2018-01-07 | E166: 12:00:00 | F166: NA | H166: NA
B167: 0 | C167: January | D167: 2018-01-07 | E167: 13:00:00 | F167: NA | H167: NA
B168: 0 | C168: January | D168: 2018-01-07 | E168: 14:00:00 | F168: NA | H168: NA
B169: 0 | C169: January | D169: 2018-01-07 | E169: 15:00:00 | F169: NA | H169: NA
B170: 0 | C170: January | D170: 2018-01-07 | E170: 16:00:00 | F170: NA | H170: NA
B171: 0 | C171: January | D171: 2018-01-07 | E171: 17:00:00 | F171: NA | H171: NA
B172: 0 | C172: January | D172: 2018-01-07 | E172: 18:00:00 | F172: NA | H172: NA
B173: 0 | C173: January | D173: 2018-01-07 | E173: 19:00:00 | F173: NA | H173: NA
B174: 0 | C174: January | D174: 2018-01-07 | E174: 20:00:00 | F174: NA | H174: NA
B175: 0 | C175: January | D175: 2018-01-07 | E175: 21:00:00 | F175: NA | H175: NA
B176: 0 | C176: January | D176: 2018-01-07 | E176: 22:00:00 | F176: NA | H176: NA
B177: 0 | C177: January | D177: 2018-01-07 | E177: 23:00:00 | F177: NA | H177: NA
B178: 0 | C178: January | D178: 2018-01-08 | E178: 00:00:00 | F178: NA | H178: NA | J178: NA
B179: 0 | C179: January | D179: 2018-01-08 | E179: 01:00:00 | F179: NA | H179: NA | J179: NA
B180: 0 | C180: January | D180: 2018-01-08 | E180: 02:00:00 | F180: NA | H180: NA | J180: NA
B181: 0 | C181: January | D181: 2018-01-08 | E181: 03:00:00 | F181: NA | H181: NA | J181: NA
B182: 0 | C182: January | D182: 2018-01-08 | E182: 04:00:00 | F182: NA | H182: NA | J182: NA
B183: 0 | C183: January | D183: 2018-01-08 | E183: 05:00:00 | F183: NA | H183: NA | J183: NA
B184: 0 | C184: January | D184: 2018-01-08 | E184: 06:00:00 | F184: NA | H184: NA | J184: NA
B185: 0 | C185: January | D185: 2018-01-08 | E185: 07:00:00 | F185: NA | H185: NA | J185: NA
B186: 0 | C186: January | D186: 2018-01-08 | E186: 08:00:00 | F186: NA | H186: NA | J186: NA
B187: 0 | C187: January | D187: 2018-01-08 | E187: 09:00:00 | F187: NA | H187: NA | J187: NA
B188: 0 | C188: January | D188: 2018-01-08 | E188: 10:00:00 | F188: NA | H188: NA | J188: NA
B189: 0 | C189: January | D189: 2018-01-08 | E189: 11:00:00 | F189: NA | H189: NA | J189: NA
B190: 0 | C190: January | D190: 2018-01-08 | E190: 12:00:00 | F190: NA | H190: NA | J190: NA
B191: 0 | C191: January | D191: 2018-01-08 | E191: 13:00:00 | F191: NA | H191: NA | J191: NA
B192: 0 | C192: January | D192: 2018-01-08 | E192: 14:00:00 | F192: NA | H192: NA | J192: NA
B193: 0 | C193: January | D193: 2018-01-08 | E193: 15:00:00 | F193: NA | H193: NA | J193: NA
B194: 0 | C194: January | D194: 2018-01-08 | E194: 16:00:00 | F194: NA | H194: NA | J194: NA
B195: 0 | C195: January | D195: 2018-01-08 | E195: 17:00:00 | F195: NA | H195: NA | J195: NA
B196: 0 | C196: January | D196: 2018-01-08 | E196: 18:00:00 | F196: NA | H196: NA | J196: NA
B197: 0 | C197: January | D197: 2018-01-08 | E197: 19:00:00 | F197: NA | H197: NA | J197: NA
B198: 0 | C198: January | D198: 2018-01-08 | E198: 20:00:00 | F198: NA | H198: NA | J198: NA
B199: 0 | C199: January | D199: 2018-01-08 | E199: 21:00:00 | F199: NA | H199: NA | J199: NA
B200: 0 | C200: January | D200: 2018-01-08 | E200: 22:00:00 | F200: NA | H200: NA | J200: NA
B201: 0 | C201: January | D201: 2018-01-08 | E201: 23:00:00 | F201: NA | H201: NA | J201: NA
... 6192 more rows

Sheet Monthly Averages
B2: Month | C2: % Data Capture | D2: Average of NO2
B3: January | C3: 0
B4: February | C4: 11.16071429 | D4: 53.07157833
B5: March | C5: 85.21505376 | D5: 44.9452373
B6: April | C6: 99.86111111 | D6: 39.22736217
B7: May | C7: 99.7311828 | D7: 42.0893469
B8: June | C8: 99.72222222 | D8: 47.30498064
B9: July | C9: 99.59677419 | D9: 43.28606451
B10: August | C10: 95.56451613 | D10: 36.30754191
B11: September | C11: 87.13768116 | D11: 37.17951996
